fUSD/lending_fUSD_20250716
["ID","MTS","AMOUNT","RATE_DAILY","PERIOD"]
[372447663,1752647456386,-1987.73,0.00021917,2]
[372447664,1752647456396,-523.03,0.00021917,2]
[372447665,1752647456405,-385.714868,0.00021917,2]
[372447666,1752647456415,-1740.52,0.00021917,2]
[372447667,1752647456424,-460.0,0.00021917,2]
[372447668,1752647456434,-460.0,0.00021917,2]
[372447669,1752647456444,-151.0,0.00021917,2]
[372447670,1752647456453,-220.904282,0.00021917,2]
[372447671,1752647456463,-1987.73,0.00021917,2]
[372447672,1752647456472,-1677.72,0.00021917,2]
[372447673,1752647456481,-1987.73,0.00021917,2]
[372447674,1752647456491,-460.0,0.00021917,2]
[372447675,1752647456501,-1987.73,0.00021917,2]
[372447676,1752647456511,-10584.53,0.00021917,2]
[372447677,1752647456520,-1793.52,0.00021917,2]
[372447678,1752647456530,-460.0,0.00021917,2]
[372447679,1752647456539,-1987.73,0.00021917,2]
[372447680,1752647456549,-460.0,0.00021917,2]
[372447681,1752647456558,-1987.73,0.00021917,2]
[372447682,1752647456568,-460.0,0.00021917,2]
[372447683,1752647456577,-151.992021,0.00021917,2]
[372447684,1752647456587,-151.0,0.00021917,2]
[372447685,1752647456596,-384.12531597,0.00021917,2]
[372447686,1752647456606,-1948.84,0.00021917,2]
[372447687,1752647456615,-6141.08,0.00021917,2]
[372447688,1752647456624,-5889.69,0.00021917,2]
[372447689,1752647456634,-460.0,0.00021917,2]
[372447690,1752647456643,-460.0,0.00021917,2]
[372447691,1752647456652,-1730.55,0.00021917,2]
[372447692,1752647456662,-3488.97,0.00021917,2]
[372447693,1752647456674,-460.0,0.00021917,2]
[372447694,1752647456684,-460.78196901,0.00021917,2]
[372447695,1752647456695,-18452.63,0.00021917,2]
[372447696,1752647456704,-460.0,0.00021917,2]
[372447697,1752647456714,-151.0,0.00021917,2]
[372447698,1752647456723,-671.55,0.00021917,2]
[372447699,1752647456733,-597.72,0.00021917,2]
[372447700,1752647456746,-151.0,0.00021917,2]
[372447701,1752647456756,-460.0,0.00021917,2]
[372447702,1752647456766,-151.0,0.00021917,2]
[372447703,1752647456775,-2006.44,0.00021917,2]
[372447704,1752647456786,-2006.44,0.00021917,2]
[372447705,1752647456795,-151.0,0.00021917,2]
[372447706,1752647456804,-2006.44,0.00021917,2]
[372447707,1752647456814,-2006.44,0.00021917,2]
[372447708,1752647456823,-2006.44,0.00021917,2]
[372447709,1752647456833,-2006.44,0.00021917,2]
[372447710,1752647456843,-2006.44,0.00021917,2]
[372447711,1752647456852,-3887.87,0.00021917,2]
[372447712,1752647456861,-2006.44,0.00021917,2]
[372447713,1752647456871,-460.0,0.00021917,2]
[372447714,1752647456880,-2006.44,0.00021917,2]
[372447715,1752647456889,-460.0,0.00021917,2]
[372447716,1752647456899,-2006.44,0.00021917,2]
[372447717,1752647456908,-4911.62,0.00021917,2]
[372447718,1752647456918,-2687.31,0.00021917,2]
[372447719,1752647456927,-460.0,0.00021917,2]
[372447720,1752647456936,-2006.44,0.00021917,2]
[372447721,1752647456947,-2006.44,0.00021917,2]
[372447722,1752647456956,-460.0,0.00021917,2]
[372447723,1752647456966,-1726.9,0.00021917,2]
[372447724,1752647456975,-460.0,0.00021917,2]
[372447725,1752647456985,-584.19,0.00021917,2]
[372447726,1752647456995,-1547.16,0.00021917,2]
[372447727,1752647457004,-715.2,0.00021917,2]
[372447728,1752647457014,-467.96446898,0.00021917,2]
[372447729,1752647457023,-460.0,0.00021917,2]
[372447730,1752647457032,-5563.87,0.00021917,2]
[372447731,1752647457042,-460.73339653,0.00021917,2]
[372447732,1752647457052,-461.07437066,0.00021917,2]
[372447733,1752647457061,-5632.53,0.00021917,2]
[372447734,1752647457071,-10237.51,0.00021917,2]
[372447735,1752647457080,-460.0,0.00021917,2]
[372447736,1752647457090,-460.0,0.00021917,2]
[372447737,1752647457100,-1285.7,0.00021917,2]
[372447738,1752647457110,-1639.81,0.00021917,2]
[372447739,1752647457119,-460.0,0.00021917,2]
[372447740,1752647457129,-460.0,0.00021917,2]
[372447741,1752647457139,-25475.5,0.00021917,2]
[372447742,1752647457151,-2276.43,0.00021917,2]
[372447743,1752647457162,-3135.37,0.00021917,2]
[372447744,1752647457176,-460.0,0.00021917,2]
[372447745,1752647457185,-6462.08,0.00021917,2]
[372447746,1752647457196,-460.0,0.00021917,2]
[372447747,1752647457205,-2672.87,0.00021917,2]
[372447748,1752647457215,-151.0,0.00021917,2]
[372447749,1752647457224,-151.0,0.00021917,2]
[372447750,1752647457234,-460.0,0.00021917,2]
[372447751,1752647457243,-1020.4,0.00021917,2]
[372447752,1752647457253,-996.01,0.00021917,2]
[372447753,1752647457263,-461.17828677,0.00021917,2]
[372447754,1752647457272,-1496.9,0.00021917,2]
[372447755,1752647457282,-460.0,0.00021917,2]
[372447756,1752647457291,-3191.44,0.00021917,2]
[372447757,1752647457300,-506.17,0.00021917,2]
[372447758,1752647457310,-402.37133268,0.00021917,2]
[372447759,1752647457319,-7610.08,0.00021917,2]
[372447760,1752647457329,-460.0,0.00021917,2]
[372447761,1752647457338,-2817.23,0.00021917,2]
[372447762,1752647457348,-460.0,0.00021917,2]
[372447763,1752647457358,-460.0,0.00021917,2]
[372447764,1752647457367,-460.0,0.00021917,2]
[372447765,1752647457377,-460.0,0.00021917,2]
[372447766,1752647457387,-500.99480526,0.00021917,2]
[372447767,1752647457397,-460.0,0.00021917,2]
[372447768,1752647457407,-460.0,0.00021917,2]
[372447769,1752647457417,-460.0,0.00021917,2]
[372447770,1752647457427,-6189.86,0.00021917,2]
[372447771,1752647457437,-2933.04,0.00021917,2]
[372447772,1752647457447,-460.0,0.00021917,2]
[372447773,1752647457458,-7608.61,0.00021917,2]
[372447774,1752647457468,-460.0,0.00021917,2]
[372447775,1752647457478,-5270.17,0.00021917,2]
[372447776,1752647457488,-3070.2,0.00021917,2]
[372447777,1752647457498,-1189.69,0.00021917,2]
[372447778,1752647457508,-1152.25,0.00021917,2]
[372447779,1752647457518,-1152.25,0.00021917,2]
[372447780,1752647457528,-1776.91,0.00021917,2]
[372447781,1752647457538,-1152.25,0.00021917,2]
[372447782,1752647457547,-460.0,0.00021917,2]
[372447783,1752647457557,-1152.25,0.00021917,2]
[372447784,1752647457567,-460.0,0.00021917,2]
[372447785,1752647457577,-564.01,0.00021917,2]
[372447786,1752647457587,-460.0,0.00021917,2]
[372447787,1752647457596,-460.0,0.00021917,2]
[372447788,1752647457606,-460.0,0.00021917,2]
[372447789,1752647457615,-2434.5,0.00021917,2]
[372447790,1752647457625,-460.0,0.00021917,2]
[372447791,1752647457634,-460.4376525,0.00021917,2]
[372447792,1752647457643,-3087.98,0.00021917,2]
[372447793,1752647457653,-20876.35,0.00021917,2]
[372447794,1752647457662,-2134.13,0.00021917,2]
[372447795,1752647457674,-460.0,0.00021917,2]
[372447796,1752647457686,-460.0,0.00021917,2]
[372447797,1752647457697,-460.0,0.00021917,2]
[372447798,1752647457706,-460.0,0.00021917,2]
[372447799,1752647457833,-1578.66,0.00021917,2]
[372447800,1752647457854,-151.0,0.00021917,2]
[372447801,1752647457863,-2019.39,0.00021917,2]
[372447802,1752647457873,-151.950839,0.00021917,2]
[372447803,1752647457882,-3506.64,0.00021917,2]
[372447804,1752647457892,-2052.87,0.00021917,2]
[372447805,1752647457901,-837.34,0.00021917,2]
[372447806,1752647457911,-704.37,0.00021917,2]
[372447807,1752647457921,-460.0,0.00021917,2]
[372447808,1752647457931,-848.22,0.00021917,2]
[372447809,1752647457941,-460.0,0.00021917,2]
[372447810,1752647457950,-506.74815511,0.00021917,2]
[372447811,1752647457960,-1351.58,0.00021917,2]
[372447812,1752647457969,-4251.78,0.00021917,2]
[372447813,1752647457979,-1676.96,0.00021917,2]
[372447814,1752647457988,-6168.4,0.00021917,2]
[372447815,1752647457998,-5170.14,0.00021917,2]
[372447816,1752647458008,-7781.83,0.00021917,2]
[372447817,1752647458017,-4905.5,0.00021917,2]
[372447818,1752647458026,-151.0,0.00021917,2]
[372447819,1752647458036,-797.39,0.00021917,2]
[372447820,1752647458047,-460.0,0.00021917,2]
[372447821,1752647458057,-151.0,0.00021917,2]
[372447822,1752647458067,-5709.63,0.00021917,2]
[372447823,1752647458076,-2965.81,0.00021917,2]
[372447824,1752647458087,-1060.992755,0.00021917,2]
[372447825,1752647458099,-1060.992755,0.00021917,2]
[372447826,1752647458110,-151.0,0.00021917,2]
[372447827,1752647458120,-1060.992755,0.00021917,2]
[372447828,1752647458130,-289.662982,0.00021917,2]
[372447829,1752647458139,-460.0,0.00021917,2]
[372447830,1752647458149,-7808.6,0.00021917,2]
[372447831,1752647458158,-604.33,0.00021917,2]
[372447832,1752647458167,-7056.33,0.00021917,2]
[372447833,1752647458177,-1060.992755,0.00021917,2]
[372447834,1752647458189,-460.75993397,0.00021917,7]
[372447835,1752647458198,-1060.992755,0.00021917,2]
[372447836,1752647458207,-460.0,0.00021917,2]
[372447837,1752647458217,-1060.992755,0.00021917,2]
[372447838,1752647458227,-3762.01,0.00021917,2]
[372447839,1752647458236,-460.0,0.00021917,2]
[372447840,1752647458245,-460.0,0.00021917,2]
[372447841,1752647458255,-460.0,0.00021917,2]
[372447842,1752647458264,-35219.72,0.00021917,2]
[372447843,1752647458274,-1535.98,0.00021917,2]
[372447844,1752647458284,-233.11917188,0.00021917,2]
[372447845,1752647458296,-1730.13,0.00021917,2]
[372447846,1752647458305,-460.0,0.00021917,2]
[372447847,1752647458315,-437.61655254,0.00021917,2]
[372447848,1752647458325,-3979.09,0.00021917,2]
[372447849,1752647458335,-460.0,0.00021917,2]
[372447850,1752647458345,-460.0,0.00021917,2]
[372447851,1752647458354,-5659.05,0.00021917,2]
[372447852,1752647458364,-7832.88,0.00021917,2]
[372447853,1752647458374,-520.82,0.00021917,2]
[372447854,1752647458383,-4228.06,0.00021917,2]
[372447855,1752647458393,-8473.22,0.00021917,2]
[372447856,1752647458403,-1473.59,0.00021917,2]
[372447857,1752647458412,-460.0,0.00021917,2]
[372447858,1752647458422,-645.62,0.00021917,2]
[372447859,1752647458432,-499.37,0.00021917,2]
[372447860,1752647458443,-635.38,0.00021917,2]
[372447861,1752647458453,-460.0,0.00021917,2]
[372447862,1752647458463,-2448.94,0.00021917,2]
[372447863,1752647458472,-460.0,0.00021917,2]
[372447864,1752647458482,-151.0,0.00021917,2]
[372447865,1752647458492,-151.42354,0.00021917,2]
[372447866,1752647458503,-151.0,0.00021917,2]
[372447867,1752647458519,-151.0,0.00021917,2]
[372447868,1752647458528,-460.0,0.00021917,2]
[372447869,1752647458538,-1244.03,0.00021917,2]
[372447870,1752647458548,-3961.48,0.00021917,2]
[372447871,1752647458558,-1842.34,0.00021917,2]
[372447872,1752647458567,-500.0,0.00021917,2]
[372447873,1752647458577,-491.53818594,0.00021917,2]
[372447874,1752647458587,-15063.3,0.00021917,2]
[372447875,1752647458598,-587.14,0.00021917,2]
[372447876,1752647458607,-705.72,0.00021917,2]
[372447877,1752647458617,-460.0,0.00021917,2]
[372447878,1752647458627,-500.0,0.00021917,2]
[372447879,1752647458637,-6531.51,0.00021917,2]
[372447880,1752647458647,-10317.02,0.00021917,2]
[372447881,1752647458657,-8613.83,0.00021917,2]
[372447882,1752647458666,-819.81,0.00021917,2]
[372447883,1752647458678,-17872.98,0.00021917,2]
[372447884,1752647458689,-460.0,0.00021917,2]
[372447885,1752647458699,-470.35,0.00021917,2]
[372447886,1752647458708,-7063.81,0.00021917,2]
[372447887,1752647458718,-460.0,0.00021917,2]
[372447888,1752647458728,-3703.01,0.00021917,2]
[372447889,1752647458737,-1272.22,0.00021917,2]
[372447890,1752647458746,-460.0,0.00021917,2]
[372447891,1752647458755,-460.0,0.00021917,2]
[372447892,1752647458763,-460.0,0.00021917,2]
[372447893,1752647458772,-460.0,0.00021917,2]
[372447894,1752647458782,-1900.37,0.00021917,2]
[372447895,1752647458790,-2786.71,0.00021917,2]
[372447896,1752647458799,-500.0,0.00021917,2]
[372447897,1752647458808,-500.0,0.00021917,2]
[372447898,1752647458817,-500.0,0.00021917,2]
[372447899,1752647458826,-498.57,0.00021917,2]
[372447900,1752647458836,-3753.3,0.00021917,2]
[372447901,1752647458846,-2091.94,0.00021917,2]
[372447902,1752647458855,-460.0,0.00021917,2]
[372447903,1752647458865,-460.0,0.00021917,2]
[372447904,1752647458875,-1118.98,0.00021917,2]
[372447905,1752647458884,-784.73,0.00021917,2]
[372447906,1752647458894,-460.0,0.00021917,2]
[372447907,1752647458903,-3716.65,0.00021917,2]
[372447908,1752647458913,-151.0,0.00021917,2]
[372447909,1752647458922,-5827.61,0.00021917,2]
[372447910,1752647458932,-151.0,0.00021917,2]
[372447911,1752647458942,-151.0,0.00021917,2]
[372447912,1752647458952,-2678.44,0.00021917,2]
[372447913,1752647458962,-1557.04,0.00021917,2]
[372447914,1752647458972,-460.0,0.00021917,2]
[372447915,1752647458982,-1045.31,0.00021917,2]
[372447916,1752647458991,-1008.24,0.00021917,2]
[372447917,1752647459000,-554.59,0.00021917,2]
[372447918,1752647459009,-460.0,0.00021917,2]
[372447919,1752647459019,-460.0,0.00021917,2]
[372447920,1752647459032,-460.0,0.00021917,2]
[372447921,1752647459046,-469.792473,0.00021917,2]
[372447922,1752647459055,-469.792473,0.00021917,2]
[372447923,1752647459065,-509.14,0.00021917,2]
[372447924,1752647459075,-469.792473,0.00021917,2]
[372447925,1752647459084,-469.792473,0.00021917,2]
[372447926,1752647459096,-10689.87,0.00021917,2]
[372447927,1752647459107,-460.0,0.00021917,2]
[372447928,1752647459116,-915.35,0.00021917,2]
[372447929,1752647459126,-460.0,0.00021917,2]
[372447930,1752647459136,-460.0,0.00021917,2]
[372447931,1752647459146,-4415.95,0.00021917,2]
[372447932,1752647459156,-460.0,0.00021917,2]
[372447933,1752647459165,-488.59,0.00021917,2]
[372447934,1752647459175,-151.0,0.00021917,2]
[372447935,1752647459184,-469.792473,0.00021917,2]
[372447936,1752647459195,-469.792473,0.00021917,2]
[372447937,1752647459210,-151.0,0.00021917,2]
[372447938,1752647459220,-469.792473,0.00021917,2]
[372447939,1752647459230,-469.792473,0.00021917,2]
[372447940,1752647459239,-683.01,0.00021917,2]
[372447941,1752647459249,-2092.45,0.00021917,2]
[372447942,1752647459259,-3088.23,0.00021917,2]
[372447943,1752647459268,-11390.4,0.00021917,2]
[372447944,1752647459278,-746.4,0.00021917,2]
[372447945,1752647459288,-27832.85,0.00021917,2]
[372447946,1752647459298,-519.49,0.00021917,2]
[372447947,1752647459308,-460.0,0.00021917,2]
[372447948,1752647459318,-161.25523575,0.00021917,2]
[372447949,1752647459328,-2540.86,0.00021917,2]
[372447950,1752647459338,-212.93419,0.00021917,2]
[372447951,1752647459348,-460.0,0.00021917,2]
[372447952,1752647459357,-212.93419,0.00021917,2]
[372447953,1752647459368,-460.0,0.00021917,2]
[372447954,1752647459377,-212.93419,0.00021917,2]
[372447955,1752647459387,-212.93419,0.00021917,2]
[372447956,1752647459398,-460.0,0.00021917,2]
[372447957,1752647459408,-460.0,0.00021917,2]
[372447958,1752647459419,-63466.06,0.00021917,2]
[372447959,1752647459428,-460.0,0.00021917,2]
[372447960,1752647459439,-7808.38,0.00021917,2]
[372447961,1752647459450,-6457.56,0.00021917,2]
[372447962,1752647459461,-837.79,0.00021917,2]
[372447963,1752647459471,-460.0,0.00021917,2]
[372447964,1752647459482,-5716.64,0.00021917,2]
[372447965,1752647459493,-212.93419,0.00021917,2]
[372447966,1752647459504,-212.93419,0.00021917,2]
[372447967,1752647459514,-853.73,0.00021917,2]
[372447968,1752647459524,-1351.67,0.00021917,2]
[372447969,1752647459534,-152819.68,0.00021917,2]
[372447970,1752647459544,-212.93419,0.00021917,2]
[372447971,1752647459554,-11496.38,0.00021917,2]
[372447972,1752647459564,-1918.98,0.00021917,2]
[372447973,1752647459574,-212.93419,0.00021917,2]
[372447974,1752647459584,-460.0,0.00021917,2]
[372447975,1752647459594,-460.0,0.00021917,2]
[372447976,1752647459604,-460.0,0.00021917,2]
[372447977,1752647459614,-4891.64,0.00021917,2]
[372447978,1752647459624,-3909.58,0.00021917,2]
[372447979,1752647459634,-460.0,0.00021917,2]
[372447980,1752647459644,-460.0,0.00021917,2]
[372447981,1752647459653,-460.0,0.00021917,2]
[372447982,1752647459665,-1000.0,0.00021918,3]
[372447983,1752647459678,-1000.0,0.00021918,3]
[372447984,1752647459689,-1000.0,0.00021918,3]
[372447985,1752647459699,-1000.0,0.00021918,3]
[372447986,1752647459709,-1000.0,0.00021918,3]
[372447987,1752647459720,-1000.0,0.00021918,3]
[372447988,1752647459730,-1000.0,0.00021918,3]
[372447989,1752647459739,-1000.0,0.00021918,3]
[372447990,1752647459750,-1000.0,0.00021918,3]
[372447991,1752647459760,-1000.0,0.00021918,3]
[372447992,1752647459770,-1000.0,0.00021918,3]
[372447993,1752647459780,-1000.0,0.00021918,3]
[372447994,1752647459791,-1000.0,0.00021918,3]
[372447995,1752647459800,-1000.0,0.00021918,3]
[372447996,1752647459810,-1000.0,0.00021918,3]
[372447997,1752647459829,-1000.0,0.00021918,3]
[372447998,1752647459838,-1000.0,0.00021918,3]
[372447999,1752647459849,-1000.0,0.00021918,3]
[372448000,1752647459859,-1000.0,0.00021918,3]
[372448001,1752647459869,-1000.0,0.00021918,3]
[372448002,1752647459878,-1000.0,0.00021918,3]
[372448003,1752647459888,-1000.0,0.00021918,3]
[372448004,1752647459898,-1000.0,0.00021918,3]
[372448005,1752647459907,-1000.0,0.00021918,3]
[372448006,1752647459917,-1000.0,0.00021918,3]
[372448007,1752647459927,-1000.0,0.00021918,3]
[372448008,1752647459937,-1000.0,0.00021918,3]
[372448009,1752647459949,-1000.0,0.00021918,3]
[372448010,1752647459959,-1000.0,0.00021918,3]
[372448011,1752647459969,-1000.0,0.00021918,3]
[372448012,1752647459980,-1000.0,0.00021918,3]
[372448013,1752647459990,-1000.0,0.00021918,3]
[372448014,1752647459999,-1000.0,0.00021918,3]
[372448015,1752647460009,-1000.0,0.00021918,3]
[372448016,1752647460019,-1000.0,0.00021918,3]
[372448017,1752647460028,-1000.0,0.00021918,3]
[372448018,1752647460396,-1000.0,0.00021918,3]
[372448019,1752647460408,-1000.0,0.00021918,3]
[372448020,1752647460418,-1000.0,0.00021918,3]
[372448021,1752647460428,-1000.0,0.00021918,3]
[372448022,1752647460438,-1000.0,0.00021918,3]
[372448023,1752647460454,-1000.0,0.00021918,3]
[372448024,1752647460463,-1000.0,0.00021918,3]
[372448025,1752647460474,-1000.0,0.00021918,3]
[372448026,1752647460485,-1000.0,0.00021918,3]
[372448027,1752647460495,-1000.0,0.00021918,3]
[372448028,1752647460505,-1000.0,0.00021918,3]
[372448029,1752647460516,-1000.0,0.00021918,3]
[372448030,1752647460526,-1000.0,0.00021918,3]
[372448031,1752647460535,-1000.0,0.00021918,3]
[372448032,1752647460546,-1000.0,0.00021918,3]
[372448033,1752647460556,-1000.0,0.00021918,3]
[372448034,1752647460566,-1000.0,0.00021918,3]
[372448035,1752647460577,-1000.0,0.00021918,3]
[372448036,1752647460586,-1000.0,0.00021918,3]
[372448037,1752647460596,-1000.0,0.00021918,3]
[372448038,1752647460606,-1000.0,0.00021918,3]
[372448039,1752647460615,-1000.0,0.00021918,3]
[372448040,1752647460625,-736.0,0.00021918,3]
[372448041,1752647460635,-5000.0,0.00021918,2]
[372448042,1752647460644,-150.0,0.00021918,2]
[372448043,1752647460654,-838.7287696,0.00021918,3]
[372448044,1752647460664,-500.0,0.00021918,2]
[372448045,1752647460674,-454.0,0.00021918,2]
[372448046,1752647460690,-150.0,0.0002193,2]
[372448047,1752647460702,-150.0,0.00021943,2]
[372448048,1752647460711,-1023.4565,0.00021944,2]
[372448049,1752647460722,-2000.0,0.00021944,2]
[372448050,1752647460732,-479.39847024,0.00021944,2]
[372448051,1752647460745,-150.35742252,0.00021954,4]
[372448052,1752647460755,-150.35742252,0.00021954,4]
[372448053,1752647460765,-150.35742252,0.00021954,4]
[372448054,1752647460775,-150.35742252,0.00021954,4]
[372448055,1752647460785,-150.35742252,0.00021954,4]
[372448056,1752647460794,-150.35742252,0.00021954,4]
[372448057,1752647460804,-150.35742252,0.00021954,4]
[372448058,1752647460814,-150.35742252,0.00021954,4]
[372448059,1752647460823,-150.35742252,0.00021954,4]
[372448060,1752647460833,-150.35742252,0.00021954,4]
[372448061,1752647460843,-150.35742252,0.00021954,4]
[372448062,1752647460853,-150.35742252,0.00021954,4]
[372448063,1752647460863,-150.35742252,0.00021954,4]
[372448064,1752647460872,-150.35742252,0.00021954,4]
[372448065,1752647460882,-150.35742252,0.00021954,4]
[372448066,1752647460892,-150.35742252,0.00021954,4]
[372448067,1752647460902,-150.35742252,0.00021954,4]
[372448068,1752647460912,-150.35742252,0.00021954,4]
[372448069,1752647460922,-150.35,0.00021954,4]
[372448070,1752647460932,-333.29228658,0.00021954,4]
[372448071,1752647460945,-333.29228658,0.00021954,4]
[372448072,1752647460954,-333.29228658,0.00021954,4]
[372448073,1752647460964,-333.29228658,0.00021954,4]
[372448074,1752647460974,-333.29228658,0.00021954,4]
[372448075,1752647460984,-333.29228658,0.00021954,4]
[372448076,1752647460994,-333.29228658,0.00021954,4]
[372448077,1752647461004,-333.29228658,0.00021954,4]
[372448078,1752647461014,-333.29228658,0.00021954,4]
[372448079,1752647461023,-333.29228658,0.00021954,4]
[372448080,1752647461033,-333.29228658,0.00021954,4]
[372448081,1752647461043,-333.29228658,0.00021954,4]
[372448082,1752647461053,-333.29228658,0.00021954,4]
[372448083,1752647461062,-333.29228658,0.00021954,4]
[372448084,1752647461072,-333.29228658,0.00021954,4]
[372448085,1752647461082,-333.29228658,0.00021954,4]
[372448086,1752647461092,-333.29228658,0.00021954,4]
[372448087,1752647461101,-333.29228658,0.00021954,4]
[372448088,1752647461112,-152.17943285,0.00021954,4]
[372448089,1752647461121,-152.17943285,0.00021954,4]
[372448090,1752647461131,-152.17943285,0.00021954,4]
[372448091,1752647461141,-152.17943285,0.00021954,4]
[372448092,1752647461151,-152.17943285,0.00021954,4]
[372448093,1752647461160,-152.17943285,0.00021954,4]
[372448094,1752647461170,-152.17943285,0.00021954,4]
[372448095,1752647461180,-152.17943285,0.00021954,4]
[372448096,1752647461193,-152.17943285,0.00021954,4]
[372448097,1752647461203,-152.17943285,0.00021954,4]
[372448098,1752647461212,-152.17943285,0.00021954,4]
[372448099,1752647461222,-152.17943285,0.00021954,4]
[372448100,1752647461232,-152.17943285,0.00021954,4]
[372448101,1752647461242,-152.17943285,0.00021954,4]
[372448102,1752647461252,-152.17943285,0.00021954,4]
[372448103,1752647461262,-152.17943285,0.00021954,4]
[372448104,1752647461271,-152.17943285,0.00021954,4]
[372448105,1752647461282,-152.17943285,0.00021954,4]
[372448106,1752647461292,-152.17,0.00021954,4]
[372448107,1752647461301,-337.33107616,0.00021954,4]
[372448108,1752647461310,-337.33107616,0.00021954,4]
[372448109,1752647461320,-337.33107616,0.00021954,4]
[372448110,1752647461330,-337.33107616,0.00021954,4]
[372448111,1752647461340,-337.33107616,0.00021954,4]
[372448112,1752647461351,-337.33107616,0.00021954,4]
[372448113,1752647461361,-337.33107616,0.00021954,4]
[372448114,1752647461372,-337.33107616,0.00021954,4]
[372448115,1752647461382,-337.33107616,0.00021954,4]
[372448116,1752647461392,-337.33107616,0.00021954,4]
[372448117,1752647461402,-337.33107616,0.00021954,4]
[372448118,1752647461412,-337.33107616,0.00021954,4]
[372448119,1752647461422,-337.33107616,0.00021954,4]
[372448120,1752647461432,-337.33107616,0.00021954,4]
[372448121,1752647461444,-337.33107616,0.00021954,4]
[372448122,1752647461455,-337.33107616,0.00021954,4]
[372448123,1752647461465,-337.33107616,0.00021954,4]
[372448124,1752647461475,-337.33107616,0.00021954,4]
[372448125,1752647461485,-154.68912557,0.00021954,4]
[372448126,1752647461494,-154.68912557,0.00021954,4]
[372448127,1752647461504,-154.68912557,0.00021954,4]
[372448128,1752647461514,-154.68912557,0.00021954,4]
[372448129,1752647461524,-154.68912557,0.00021954,4]
[372448130,1752647461534,-154.68912557,0.00021954,4]
[372448131,1752647461544,-154.68912557,0.00021954,4]
[372448132,1752647461553,-154.68912557,0.00021954,4]
[372448133,1752647461563,-154.68912557,0.00021954,4]
[372448134,1752647461573,-154.68912557,0.00021954,4]
[372448135,1752647461583,-154.68912557,0.00021954,4]
[372448136,1752647461593,-154.68912557,0.00021954,4]
[372448137,1752647461603,-154.68912557,0.00021954,4]
[372448138,1752647461613,-154.68912557,0.00021954,4]
[372448139,1752647461623,-154.68912557,0.00021954,4]
[372448140,1752647461633,-154.68912557,0.00021954,4]
[372448141,1752647461643,-154.68912557,0.00021954,4]
[372448142,1752647461653,-154.68912557,0.00021954,4]
[372448143,1752647461663,-154.68912557,0.00021954,4]
[372448144,1752647461674,-154.68,0.00021954,4]
[372448145,1752647461691,-360.941293,0.00021954,4]
[372448146,1752647461701,-360.941293,0.00021954,4]
[372448147,1752647461710,-360.941293,0.00021954,4]
[372448148,1752647461720,-360.941293,0.00021954,4]
[372448149,1752647461730,-360.941293,0.00021954,4]
[372448150,1752647461740,-360.941293,0.00021954,4]
[372448151,1752647461749,-360.941293,0.00021954,4]
[372448152,1752647461761,-360.941293,0.00021954,4]
[372448153,1752647461771,-360.941293,0.00021954,4]
[372448154,1752647461780,-360.941293,0.00021954,4]
[372448155,1752647461790,-360.941293,0.00021954,4]
[372448156,1752647461800,-360.941293,0.00021954,4]
[372448157,1752647461809,-360.941293,0.00021954,4]
[372448158,1752647461819,-360.941293,0.00021954,4]
[372448159,1752647461828,-360.941293,0.00021954,4]
[372448160,1752647461838,-360.941293,0.00021954,4]
[372448161,1752647461848,-360.941293,0.00021954,4]
[372448162,1752647461857,-360.941293,0.00021954,4]